fUST/lending_fUST_20240501
["ID","MTS","AMOUNT","RATE_DAILY","PERIOD"]
[325190131,1714565438861,-418.28846301,0.000436,7]
[325190132,1714565438870,-418.28846301,0.000436,7]
[325190133,1714565438878,-418.28846301,0.000436,7]
[325190134,1714565438888,-418.28846301,0.000436,7]
[325190135,1714565438897,-418.28846301,0.000436,7]
[325190136,1714565438906,-418.28846301,0.000436,7]
[325190137,1714565438915,-418.28846301,0.000436,7]
[325190147,1714565439089,-418.28846301,0.000436,7]
[325190149,1714565439101,-418.28846301,0.000436,7]
[325190151,1714565439111,-418.28846301,0.000436,7]
[325190153,1714565439120,-418.28846301,0.000436,7]
[325190155,1714565439130,-418.28846301,0.000436,7]
[325190157,1714565439139,-418.28846301,0.000436,7]
[325190159,1714565439149,-418.28846301,0.000436,7]
[325190161,1714565439158,-418.28846301,0.000436,7]
[325190163,1714565439168,-418.28846301,0.000436,7]
[325190165,1714565439178,-418.28846301,0.000436,7]
[325190167,1714565439187,-418.28846301,0.000436,7]
[325190169,1714565439197,-418.28846301,0.000436,7]
[325190171,1714565439206,-418.28846,0.000436,7]
[325190173,1714565439216,-152.90186699,0.00043665,30]
[325190174,1714565439225,-900.0,0.00044,120]
[325190175,1714565439235,-608.19942,0.00044428,2]
[325190176,1714565439244,-169.347689,0.00044521,120]
[325190177,1714565439254,-393.69140358,0.00044982,2]
[325190178,1714565439263,-1520.24750243,0.00045,4]
[325190179,1714565439273,-151.0,0.00045,120]
[325190180,1714565439283,-300.0,0.00045,30]
[325190181,1714565439292,-154.76784823,0.00045548,15]
[325190182,1714565439301,-151.0,0.00045644,120]
[325190183,1714565439311,-608.19941,0.00045735,2]
[325190184,1714565439321,-151.0,0.00046301,120]
[325190185,1714565439330,-393.69140358,0.00046506,2]
[325190186,1714565439340,-1612.3,0.00046673,3]
[325190187,1714565439352,-151.0,0.00046959,120]
[325190188,1714565439361,-500.0,0.00046979,120]
[325190189,1714565439372,-500.0,0.00046979,120]
[325190190,1714565439382,-274.21010636,0.00046979,120]
[325190191,1714565439391,-35585.42079085,0.0004698,120]
[325190192,1714565439401,-608.19941,0.00047042,2]
[325190193,1714565439410,-426.34558821,0.000473,120]
[325190194,1714565439420,-151.0,0.00047616,120]
[325190195,1714565439430,-393.69140358,0.00048031,2]
[325190196,1714565439439,-151.0,0.00048274,120]
[325190197,1714565439448,-608.19942,0.00048349,2]
[325190198,1714565439457,-3009.5,0.00048511,3]
[325190199,1714565439467,-4500.0,0.00048521,30]
[325190200,1714565439476,-152.70730249,0.00048599,30]
[325190201,1714565439485,-151.0,0.00048932,120]
[325190202,1714565439494,-1800.0,0.00049,120]
[325190203,1714565439503,-2520.44707597,0.00049315,120]
[325190204,1714565439512,-580.6032658,0.0004949,30]
[325190205,1714565439521,-393.69140358,0.00049555,2]
[325190206,1714565439531,-151.0,0.00049589,120]
[325190207,1714565439540,-1776.91,0.00049599,7]
[325190208,1714565439549,-29480.22185211,0.000496,61]
[325190210,1714565439558,-600647.97170121,0.000496,30]
[325190222,1714565440873,-12014.53212786,0.000496,30]
[325190245,1714565443980,-2507.92,0.00048511,3]
[325190246,1714565443991,-4943.69200522,0.000496,30]
[325190285,1714565481106,-377.55762742,0.00046979,120]
[325190286,1714565481134,-300.0,0.00049598,30]
[325190287,1714565481160,-491.66851525,0.00049599,30]
[325190288,1714565481184,-382393.80416571,0.000496,30]
[325190289,1714565481207,-100182.44665379,0.000498,30]
[325190290,1714565481234,-1000.0,0.0004998,120]
[325190291,1714565481257,-154.76784823,0.0005,30]
[325190292,1714565481284,-960.60835228,0.0005,60]
[325190293,1714565481310,-2910.94211719,0.0005,120]
[325190294,1714565481488,-1000.0,0.0005,120]
[325190295,1714565481512,-151.0,0.00050247,120]
[325190296,1714565481535,-159.71048373,0.00050899,120]
[325190297,1714565481558,-151.0,0.00050904,120]
[325190298,1714565481582,-827.00749708,0.00051,120]
[325190299,1714565481606,-150.0,0.0005122,56]
[325190300,1714565481631,-151.0,0.00051562,120]
[325190301,1714565481655,-152.90186699,0.00051634,60]
[325190302,1714565481678,-151.0,0.00052219,120]
[325190303,1714565481702,-151.0,0.00052877,120]
[325190304,1714565481725,-165.0,0.00053,120]
[325190305,1714565481749,-169.347689,0.00053425,120]
[325190306,1714565481772,-536.0,0.0005345,35]
[325190307,1714565481797,-214.86,0.0005345,35]
[325190308,1714565481821,-536.0,0.0005346,35]
[325190309,1714565481844,-150.5,0.0005346,35]
[325190310,1714565481869,-536.0,0.0005347,35]
[325190311,1714565481895,-150.5,0.0005347,35]
[325190312,1714565481918,-160.0,0.00053479,60]
[325190313,1714565481942,-151.0,0.00053534,120]
[325190314,1714565481966,-160.46474346,0.00053579,60]
[325190315,1714565481990,-105253.91243987,0.0005358,30]
[325190316,1714565496727,-14740.11092606,0.0005358,61]
[325190317,1714565496750,-524743.48756013,0.0005358,30]
[325190318,1714565496778,-165.0,0.00053699,120]
[325190319,1714565496801,-297.0,0.000538,32]
[325190320,1714565496824,-150.5,0.0005397,35]
[325190321,1714565496846,-232.17,0.0005397,35]
[325190322,1714565496869,-150.5,0.0005398,35]
[325190323,1714565496892,-150.5,0.0005398,35]
[325190324,1714565496915,-238.99,0.0005398,35]
[325190325,1714565496938,-181.67,0.0005399,35]
[325190326,1714565496962,-150.5,0.0005399,35]
[325190327,1714565496985,-150.5,0.0005399,35]
[325190328,1714565497007,-150.5,0.0005399,35]
[325190329,1714565497032,-606.09,0.00054,120]
[325190330,1714565497059,-5999.99,0.00054,120]
[325190331,1714565497087,-151.0,0.00054192,120]
[325190332,1714565497109,-698.13517073,0.000544,60]
[325190333,1714565497135,-150.0,0.0005445,62]
[325190334,1714565497161,-289.052651,0.000547,99]
[325190335,1714565497185,-500.0,0.00054794,120]
[325190336,1714565497209,-500.0,0.00054794,120]
[325190337,1714565497232,-418.10804058,0.00054794,120]
[325190338,1714565497256,-501.23310096,0.00054794,120]
[325190339,1714565497280,-500.0,0.00054794,120]
[325190340,1714565497304,-517.89564404,0.00054794,120]
[325190341,1714565497328,-521.9529511,0.00054794,120]
[325190342,1714565497351,-500.0,0.00054794,120]
[325190343,1714565497374,-500.0,0.00054794,120]
[325190344,1714565497398,-500.0,0.00054794,120]
[325190345,1714565497423,-500.0,0.00054794,60]
[325190346,1714565497447,-455.25613864,0.00054794,120]
[325190347,1714565497469,-500.0,0.00054794,120]
[325190348,1714565497492,-500.0,0.00054794,120]
[325190349,1714565497515,-610.07403561,0.00054794,120]
[325190350,1714565497539,-594.61,0.00054794,120]
[325190351,1714565497564,-600.18,0.00054794,120]
[325190352,1714565497587,-500.0,0.00054794,120]
[325190353,1714565497610,-430.16731504,0.00054794,120]
[325190354,1714565497633,-500.0,0.00054794,120]
[325190355,1714565497658,-500.0,0.00054794,120]
[325190356,1714565497682,-500.0,0.00054794,120]
[325190357,1714565497704,-960.78,0.00054794,120]
[325190358,1714565497728,-500.0,0.00054794,120]
[325190359,1714565497751,-500.0,0.00054794,120]
[325190360,1714565497773,-542.5372522,0.00054794,120]
[325190361,1714565497796,-1135.95,0.00054794,120]
[325190362,1714565497820,-500.0,0.00054794,120]
[325190363,1714565497844,-500.0,0.00054794,120]
[325190364,1714565497867,-500.70477529,0.00054794,120]
[325190365,1714565497890,-500.0,0.00054794,120]
[325190366,1714565497913,-500.0,0.00054794,120]
[325190367,1714565497936,-500.0,0.00054794,120]
[325190368,1714565497960,-500.0,0.00054794,120]
[325190369,1714565497982,-412.81035146,0.00054794,120]
[325190370,1714565498010,-500.0,0.00054794,120]
[325190371,1714565498037,-500.0,0.00054794,120]
[325190372,1714565498060,-500.0,0.00054794,120]
[325190373,1714565498085,-1172.17,0.00054794,120]
[325190374,1714565498109,-500.0,0.00054794,120]
[325190375,1714565498134,-435.76601335,0.00054794,120]
[325190376,1714565498159,-539.18071773,0.00054794,120]
[325190377,1714565498182,-500.0,0.00054794,120]
[325190378,1714565498207,-500.0,0.00054794,120]
[325190379,1714565498230,-500.0,0.00054794,120]
[325190380,1714565498254,-500.0,0.00054794,120]
[325190381,1714565498277,-500.0,0.00054794,120]
[325190382,1714565498300,-500.0,0.00054794,120]
[325190383,1714565498324,-500.0,0.00054794,120]
[325190384,1714565498347,-500.0,0.00054794,120]
[325190385,1714565498368,-500.0,0.00054794,120]
[325190386,1714565498391,-500.0,0.00054794,120]
[325190387,1714565498413,-501.86647643,0.00054794,120]
[325190388,1714565498436,-505.85986609,0.00054794,120]
[325190389,1714565498459,-500.0,0.00054794,30]
[325190390,1714565498620,-500.0,0.00054794,120]
[325190391,1714565498647,-500.0,0.00054794,120]
[325190392,1714565498672,-500.0,0.00054794,120]
[325190393,1714565498697,-500.0,0.00054794,120]
[325190394,1714565498721,-515.08,0.00054794,120]
[325190395,1714565498744,-500.0,0.00054794,120]
[325190396,1714565498768,-308.138065,0.00054794,120]
[325190397,1714565498791,-500.0,0.00054794,120]
[325190398,1714565498815,-500.0,0.00054794,120]
[325190399,1714565498839,-500.0,0.00054794,120]
[325190400,1714565498863,-500.0,0.00054794,120]
[325190401,1714565498888,-500.0,0.00054794,120]
[325190402,1714565498912,-500.0,0.00054794,120]
[325190403,1714565498935,-500.0,0.00054794,120]
[325190404,1714565498959,-500.0,0.00054794,120]
[325190405,1714565498984,-500.0,0.00054794,120]
[325190406,1714565499008,-500.0,0.00054794,120]
[325190407,1714565499034,-595.96942936,0.00054794,120]
[325190408,1714565499059,-500.0,0.00054794,120]
[325190409,1714565499083,-500.0,0.00054794,120]
[325190410,1714565499107,-567.11,0.00054794,120]
[325190411,1714565499139,-500.0,0.00054794,120]
[325190412,1714565499164,-500.0,0.00054794,120]
[325190413,1714565499187,-500.0,0.00054794,120]
[325190414,1714565499213,-500.0,0.00054794,120]
[325190415,1714565499236,-505.30029406,0.00054794,120]
[325190416,1714565499260,-500.0,0.00054794,120]
[325190417,1714565499284,-832.58,0.00054794,120]
[325190418,1714565499308,-500.0,0.00054794,120]
[325190419,1714565499332,-500.0,0.00054794,120]
[325190420,1714565499357,-500.0,0.00054794,120]
[325190421,1714565499385,-527.67,0.00054794,120]
[325190422,1714565499411,-612.01089784,0.00054794,120]
[325190423,1714565499435,-500.0,0.00054794,120]
[325190424,1714565499459,-529.14,0.00054794,120]
[325190425,1714565499483,-659.33,0.00054794,120]
[325190426,1714565499507,-500.0,0.00054794,120]
[325190427,1714565499531,-500.0,0.00054794,120]
[325190428,1714565499555,-500.0,0.00054794,120]
[325190429,1714565499577,-500.0,0.00054794,120]
[325190430,1714565499602,-594.8723273,0.00054794,120]
[325190436,1714565720005,-165.8168504,0.0004367,48]
[325190437,1714565720025,-107.55651191,0.0004367,48]
[325190442,1714565911951,377.55762742,0.00019178,2]
[325190444,1714566011070,363.77625771,0.00019178,2]
[325190445,1714566029862,1378.68043058,9.999e-05,2]
[325190446,1714566038505,241.74656629,0.0002,2]
[325190447,1714566436914,717.98897193,9.999e-05,2]
[325190448,1714566438993,6535.23730479,9.999e-05,2]
[325190449,1714566504254,5932.84631855,0.0002,2]
[325190453,1714566552119,-272.87632783,0.0002091,2]
[325190454,1714566554121,-1105.80410275,0.0002091,2]
[325190455,1714566554141,-154.79876261,0.00020912,2]
[325190456,1714566554161,-14893.77297682,0.00020913,2]
[325190457,1714566554181,-160.616439,0.00022036,2]
[325190458,1714566554202,-182.70161,0.00026215,2]
[325190459,1714566554222,-24900.0,0.00027245,2]
[325190460,1714566554243,-465.14080406,0.00027307,3]
[325190461,1714566554263,-182.70161,0.00027407,2]
[325190462,1714566554284,-182.70161,0.00028598,2]
[325190463,1714566554304,-182.70161,0.00029789,2]
[325190464,1714566554327,-250.0,0.000299,2]
[325190465,1714566554353,-1751.631749,0.0003,7]
[325190466,1714566554373,-447.2209758,0.00032,4]
[325190467,1714566554396,-465.14080401,0.00032595,6]
[325190468,1714566554415,-466.46671286,0.00034,4]
[325190469,1714566554437,-597.98045973,0.00035,2]
[325190470,1714566554458,-154.76784823,0.00035,4]
[325190471,1714566554479,-314.57367,0.00035616,120]
[325190472,1714566554499,-248.21008586,0.000369,2]
[325190473,1714566554519,-10664.09300882,0.00037,5]
[325190474,1714566554541,-2049.08470554,0.00037,2]
[325190475,1714566554560,-465.14080401,0.00037883,8]
[325190476,1714566554580,-609.81736,0.000393,2]
[325190477,1714566554600,-5104.97968368,0.0004,4]
[325190478,1714566554618,-300.00000002,0.0004,11]
[325190479,1714566554637,-609.81736,0.00040128,2]
[325190480,1714566556424,219.070836,0.00020909,2]
[325190481,1714566572798,447.2209758,0.00032,4]
[325190483,1714566579321,5461.4995396,0.00020913,2]
[325190484,1714566583412,9378.45996285,0.00020913,2]
[325190485,1714566586445,167.74301048,0.0002,2]
[325190486,1714566589045,1091.78088148,0.00020913,2]
[325190487,1714566609718,5574.98688216,0.00026574,2]
[325190513,1714566631986,-154.76784823,0.00026573,2]
[325190515,1714566631996,-222.78977919,0.00026574,2]
[325190518,1714566632007,-5824.6139192,0.00026574,2]
[325190620,1714566638140,-1251.78323974,0.00026574,2]
[325190647,1714566640369,-1378.68043058,0.00026573,2]
[325190648,1714566640381,-12904.15998518,0.00026574,2]
[325190649,1714566640396,-9381.1135207,0.00026574,2]
[325190664,1714566643115,-2921.5,0.00026574,2]
[325190700,1714566794834,272.87483722,0.000165,2]
[325190721,1714567172657,24900.0,0.00019993,2]
[325190722,1714567268091,1378.68043058,9.999e-05,2]
[325190723,1714567483154,891.03583559,9.999e-05,2]
[325190724,1714567514482,346.94405713,0.0002,2]
[325190725,1714567651857,24900.0,0.00019902,2]
[325190726,1714567701684,551.42384778,9.999e-05,2]
[325190727,1714567711980,500.0,0.00019178,2]
[325190728,1714567712011,500.0,0.00019178,2]
[325190729,1714567712044,500.0,0.00019178,2]
[325190730,1714567712080,500.0,0.00019178,2]
[325190731,1714567712112,264.05722156,0.00019178,2]
[325190732,1714567712140,199.4842815,0.00019178,2]
[325190733,1714567712168,352.58704392,0.00019178,2]
[325190734,1714567718777,250.0,0.000199,2]
[325190735,1714567751190,-1378.68043058,0.00020808,2]
[325190736,1714567751210,-422.65689908,0.00020809,2]
[325190737,1714567751229,-160.854376,0.00020883,2]
[325190738,1714567751249,-308.79421087,0.00020902,2]
[325190739,1714567751268,-549.70329734,0.00020903,2]
[325190740,1714567751290,-67435.2931103,0.00020903,2]
[325190741,1714567751310,-59226.73956329,0.00020904,2]
[325190742,1714567751330,-362.29479417,0.00020907,2]
[325190743,1714567751349,-1584.45455669,0.00020908,7]
[325190744,1714567751367,-154.76784823,0.00020909,2]
[325190745,1714567751385,-797.63007274,0.0002091,2]
[325190746,1714567751403,-2015.19457976,0.00020911,2]
[325190747,1714567751423,-683.23867972,0.00020911,2]
[325190748,1714567751442,-865.88391409,0.00022738,2]
[325190749,1714567751462,-209.41857221,0.00023,2]
[325190750,1714567751482,-12336.13444926,0.000242,2]
[325190751,1714567751502,-620.0,0.00026041,2]
[325190752,1714567751522,-6276.85,0.00026554,3]
[325190753,1714567751543,-7532.22,0.00026564,3]
[325190754,1714567751563,-363.95014905,0.00026574,2]
[325190755,1714567751584,-756.93644427,0.00026574,2]
[325190756,1714567751604,-422.65689907,0.00027025,3]
[325190757,1714567751625,-620.0,0.00027343,2]
[325190758,1714567751645,-165.47339057,0.00027354,2]
[325190759,1714567751665,-335.96749206,0.00029997,2]
[325190760,1714567751691,-50000.0,0.0003,30]
[325190761,1714567751713,-261.19117951,0.00033142,2]
[325190762,1714567751733,-422.65689907,0.00033242,6]
[325190763,1714567751752,-165.47339057,0.000339,2]
[325190764,1714567751773,-466.46671286,0.00034,4]
[325190765,1714567751799,-154.76784823,0.00035,4]
[325190766,1714567751820,-386.30437416,0.00035,4]
[325190767,1714567751844,-425.45157815,0.00035,10]
[325190768,1714567751864,-287.374782,0.00035616,120]
[325190769,1714567751887,-4914.62,0.00035616,3]
[325190770,1714567751908,-150.77383924,0.0003641,2]
[325190771,1714567751928,-2049.08470554,0.00037,2]
[325190772,1714567751949,-321.52307401,0.00038,30]
[325190773,1714567751970,-609.13987,0.00039324,2]
[325190774,1714567751990,-422.65689907,0.00039458,9]
[325190775,1714567752703,5230.71,0.00026544,3]
[325190776,1714567763906,24563.74152694,0.00020913,2]
[325190777,1714567766967,609.13987,0.00039336,2]
[325190778,1714567776356,756.93644427,0.00025,2]
[325190779,1714567786782,2049.08470554,0.00037,2]
[325190780,1714567791162,466.46671286,0.00034,4]
[325190781,1714567792558,756.93644427,0.00025,2]
[325190782,1714567808760,1886.19761549,0.00037,2]
[325190801,1714567832204,-1378.68043058,0.00020913,2]
[325190803,1714567832214,-863.42443304,0.00025,2]
[325190804,1714567832224,-466.46671286,0.00034,4]
[325190805,1714567832234,-162.88709005,0.00037,2]
[325190806,1714567832244,-321.52307401,0.00038,30]
[325190807,1714567832254,-609.13987,0.00039336,2]
[325190808,1714567832263,-5104.97968368,0.0004,4]
[325190809,1714567832273,-486.33472313,0.0004,2]
[325190810,1714567832282,-1001.12299739,0.0004,4]
[325190812,1714567832291,-609.13987,0.00040002,2]
[325190814,1714567832301,-150.77383924,0.00040456,2]
[325190816,1714567832310,-609.13987,0.00040669,2]
[325190818,1714567832322,-252.7509919,0.00041,2]
[325190820,1714567832331,-301.54767848,0.00041135,4]
[325190822,1714567832340,-609.13987,0.00041335,2]
[325190824,1714567832350,-287.374782,0.00041553,120]
[325190826,1714567832359,-603.09535696,0.00041827,7]
[325190828,1714567832371,-609.13987,0.00042002,2]
[325190830,1714567832380,-154.76784823,0.0004234,10]
[325190831,1714567832389,-609.13987,0.00042669,2]
[325190834,1714567832399,-1206.19071393,0.00042886,30]
[325190836,1714567832407,-609.13987,0.00043335,2]
[325190838,1714567832416,-250.0,0.00043456,44]
[325190840,1714567832426,-1000.0,0.000436,30]
[325190841,1714567832435,-209.14423165,0.000436,7]
[325190842,1714567832444,-209.14423165,0.000436,7]
[325190843,1714567832454,-209.14423165,0.000436,7]
[325190844,1714567832463,-209.14423165,0.000436,7]
[325190845,1714567832473,-209.14423165,0.000436,7]
[325190847,1714567832483,-209.14423165,0.000436,7]
[325190848,1714567832491,-209.14423165,0.000436,7]
[325190850,1714567832501,-209.14423165,0.000436,7]
[325190851,1714567832510,-209.14423165,0.000436,7]
[325190852,1714567832519,-209.14423165,0.000436,7]
[325190853,1714567832529,-209.14423165,0.000436,7]
[325190854,1714567832538,-209.14423165,0.000436,7]
[325190855,1714567832547,-209.14423165,0.000436,7]
[325190856,1714567832557,-209.14423165,0.000436,7]
[325190857,1714567832566,-209.14423165,0.000436,7]
[325190858,1714567832575,-209.14423165,0.000436,7]
[325190859,1714567832583,-209.14423165,0.000436,7]
[325190860,1714567832593,-209.14423165,0.000436,7]
[325190861,1714567832602,-209.14423165,0.000436,7]
[325190862,1714567832611,-209.14423,0.000436,7]
[325190863,1714567832625,-303.86860129,0.0004367,15]
[325190864,1714567832634,-165.8168504,0.00043706,48]
[325190865,1714567832644,-165.8168504,0.00043706,48]
[325190866,1714567832653,-500.0,0.00043706,14]
[325190867,1714567832663,-502.90835576,0.00043706,120]
[325190868,1714567832672,-4720.48743638,0.00043706,2]
[325190869,1714567832681,-730.70918595,0.00043981,30]
[325190870,1714567832691,-609.13987,0.00044002,2]
[325190871,1714567832700,-609.13988,0.00044668,2]
[325190872,1714567832713,-151.0,0.00045,120]
[325190873,1714567832722,-300.0,0.00045,30]
[325190874,1714567832731,-609.13987,0.00045335,2]
[325190875,1714567832741,-151.0,0.00045753,120]
[325190876,1714567832750,-1478.0,0.0004595,3]
[325190877,1714567832759,-609.13987,0.00046002,2]
[325190878,1714567832768,-151.0,0.00046493,120]
[325190879,1714567832778,-609.13987,0.00046668,2]
[325190880,1714567832790,-151.0,0.00047233,120]
[325190881,1714567832800,-609.13987,0.00047335,2]
[325190882,1714567832809,-999.0,0.00047468,7]
[325190883,1714567832819,-999.0,0.00047468,10]
[325190884,1714567832828,-999.0,0.00047468,13]
[325190885,1714567832838,-999.0,0.00047468,16]
[325190886,1714567832847,-921.15193991,0.00047468,19]
[325190887,1714567832860,-77.84806009,0.00047468,19]
[325190888,1714567832872,-287.374782,0.00047489,120]
[325190889,1714567832882,-151.0,0.00047973,120]
[325190890,1714567832891,-165.0,0.00048,90]
[325190891,1714567832900,-609.13987,0.00048001,2]
[325190892,1714567832909,-165.0,0.00048356,90]
[325190893,1714567832919,-609.13987,0.00048668,2]
[325190894,1714567832928,-151.0,0.00048712,120]
[325190895,1714567832937,-1812.02,0.000488,90]
[325190896,1714567832946,-1500.0,0.00049,30]
[325190897,1714567832955,-1500.0,0.00049,30]
[325190898,1714567832965,-1500.0,0.00049,30]
[325190899,1714567832973,-1242.66,0.00049,30]
[325190900,1714567832983,-152.90186699,0.00049123,30]
[325190901,1714567832992,-609.13987,0.00049335,2]
[325190902,1714567833001,-151.0,0.00049452,120]
[325190903,1714567833010,-4458.20674087,0.00049598,4]
[325191209,1714568077963,928.84070559,0.00014,2]
[325191212,1714568095834,314.13557534,0.00019866,2]
[325191213,1714568280673,173.21086087,0.00019866,2]
[325191214,1714568287311,154.79876161,0.00019866,2]
[325191215,1714568289450,155.04825838,0.00019866,2]
[325191216,1714568292274,155.12385227,0.00019866,2]
[325191217,1714568297378,154.99687411,0.00019866,2]
[325191218,1714568302572,10594.99994698,0.0002,2]
[325191219,1714568302602,603.94471779,0.000185,2]
[325191220,1714568309887,487.60404824,0.000185,2]
[325191221,1714568311268,1678.22103741,0.00015,2]
[325191222,1714568312695,361.76385605,0.00019178,2]
[325191223,1714568312724,327.45309495,0.00019178,2]
[325191224,1714568312754,299.77897778,0.00019178,2]
[325191225,1714568312882,421.51725408,0.00019178,2]
[325191226,1714568312936,405.77611318,0.00019178,2]
[325191227,1714568313184,500.0,0.00019178,2]
[325191228,1714568313217,500.0,0.00019178,2]
[325191229,1714568313256,500.0,0.00019178,2]
[325191230,1714568313290,500.0,0.00019178,2]
[325191231,1714568313485,500.0,0.00019178,2]
[325191232,1714568313516,502.00264863,0.00019178,2]
[325191233,1714568313561,434.45481969,0.00019178,2]
[325191234,1714568320572,4344.3671517,0.0002,2]
[325191235,1714568320688,194.18242801,0.00019178,2]
[325191236,1714568326087,2659.9587492,0.00019911,2]
[325191237,1714568331034,500.0,0.00019178,2]
[325191238,1714568331067,251.87434766,0.00019178,2]
[325191239,1714568331100,500.0,0.00019178,2]
[325191240,1714568331128,500.0,0.00019178,2]
[325191241,1714568331156,500.0,0.00019178,2]
[325191242,1714568331185,500.0,0.00019178,2]
[325191283,1714568487316,186.580557,0.0001986,2]
[325191284,1714568526139,312.97578303,0.00015,2]
[325191294,1714568547739,1378.68043058,9.999e-05,2]
[325191295,1714568563233,939.61631274,0.00015,2]
[325191338,1714568700307,160.777608,0.00019573,2]
[325191348,1714568837198,24900.0,0.00019774,2]
[325191349,1714568973657,1455.50148521,0.00015575,2]
[325191350,1714568991457,272.87483722,0.000165,2]
[325191392,1714569033375,-20200.60362902,0.00020757,2]
[325191393,1714569033385,-9378.45996285,0.00020758,2]
[325191394,1714569033394,-1378.68043058,0.00020758,2]
[325191395,1714569033404,-2101.71813346,0.00020759,2]
[325191396,1714569033413,-718.54795119,0.00020761,2]
[325191397,1714569033423,-164.05365003,0.00020764,2]
[325191398,1714569033432,-209.2366375,0.00020767,2]
[325191399,1714569033442,-250.20826085,0.00020767,2]
[325191400,1714569033452,-214.93942441,0.00020767,2]
[325191401,1714569033461,-18708.98146769,0.0002077,2]
[325191403,1714569033470,-213.96611033,0.00020777,2]
[325191404,1714569033480,-1085.90499841,0.00020779,2]
[325191405,1714569033489,-160.723884,0.00020794,2]
[325191406,1714569033498,-3185.22378167,0.00020911,2]
[325191407,1714569033507,-466.16787958,0.00020912,2]
[325191408,1714569033516,-156.28533307,0.00020912,2]
[325191409,1714569033526,-325.63833926,0.00020912,2]
[325191410,1714569033535,-176.59551373,0.00020912,2]
[325191411,1714569033545,-247.65090044,0.00020912,2]
[325191412,1714569033554,-157.13735351,0.00020912,2]
[325191413,1714569033564,-154.79876161,0.00020912,2]
[325191414,1714569033573,-216.16208935,0.00020912,2]
[325191415,1714569033583,-173.46499647,0.00020912,2]
[325191416,1714569033592,-2587.76784421,0.00020912,2]
[325191417,1714569033602,-189.36782433,0.00020912,2]
[325191418,1714569033616,-608.070651,0.00020912,2]
[325191419,1714569033625,-201.85119939,0.00020912,2]
[325191420,1714569033635,-628.72030382,0.00020912,2]
[325191421,1714569033644,-312.89043206,0.00020912,2]
[325191422,1714569033654,-365.0073985,0.00020913,2]
[325191423,1714569033663,-166.666666,0.00021918,2]
[325191424,1714569033674,-159.24114282,0.00022,2]
[325191425,1714569033684,-166.666666,0.00022431,2]
[325191426,1714569033693,-166.666666,0.00022944,2]
[325191427,1714569033703,-714.26625523,0.00023,2]
[325191428,1714569033712,-166.666666,0.00023456,2]
[325191429,1714569033722,-166.666666,0.00023969,2]
[325191430,1714569033731,-166.666666,0.00024482,2]
[325191431,1714569033741,-756.93644427,0.00025,2]
[325191432,1714569033752,-620.0,0.00026041,2]
[325191434,1714569033761,-620.0,0.00027343,2]
[325191436,1714569033771,-12004.03722353,0.000275,2]
[325191437,1714569033780,-8972.05,0.0002759,3]
[325191439,1714569033789,-10766.46,0.000276,3]
[325191441,1714569033799,-10148.32703334,0.0002763,2]
[325191442,1714569033808,-220.96622212,0.00028,2]
[325191444,1714569033818,-256.20966369,0.000299,2]
[325191446,1714569033827,-778.13540381,0.000299,2]
[325191447,1714569033836,-778.13540377,0.000299,2]
[325191448,1714569033845,-778.13540377,0.000299,2]
[325191449,1714569033859,-778.13540377,0.000299,2]
[325191450,1714569033869,-778.13540377,0.000299,2]
[325191451,1714569033878,-778.13540377,0.000299,2]
[325191452,1714569033887,-778.13540377,0.000299,2]
[325191453,1714569033896,-778.13540377,0.000299,2]